bitfinex-derivatives/quotes_SOLF0:USTF0_20250428
["timestamp","ask_amount","ask_price","bid_price","bid_amount"]
[1745861682684,6.8339,146.28,146.25,6.8349]
[1745861688284,6.8339,146.28,146.26,6.8346]
[1745861688588,46.15376795,146.33,146.24,16.50136795]
[1745861688788,29.6524,146.33,146.26,16.50136795]
[1745861688986,6.8324,146.31,146.29,6.833]
[1745861689188,29.6524,146.33,146.26,42.12136795]
[1745861689788,6.8321,146.32,146.29,6.833]
[1745861690181,10.8641,146.33,146.3,6.8327]
[1745861690379,4.0324,146.33,146.3,6.8327]
[1745861691286,6.8321,146.32,146.29,6.833]
[1745861692492,4.0324,146.33,146.26,42.12136795]
[1745861693089,6.8329,146.32,146.29,6.8337]
[1745861693993,6.8331,146.31,146.29,6.8337]
[1745861694187,4.0324,146.33,146.28,6.8342]
[1745861694387,20.53376795,146.33,146.28,6.8342]
[1745861694883,6.8336,146.3,146.28,6.8342]
[1745861696192,6.8333,146.31,146.28,6.8342]
[1745861696395,6.8333,146.31,146.29,6.8339]
[1745861697087,6.8328,146.32,146.3,6.8334]
[1745861699399,6.833,146.31,146.29,6.8338]
[1745861700498,6.8329,146.32,146.29,6.8338]
[1745861700701,6.8329,146.32,146.3,6.8335]
[1745861700997,1.9729,146.33,146.3,6.8335]
[1745861701193,8.8052,146.33,146.3,6.8335]
[1745861701394,1.9729,146.33,146.29,6.8338]
[1745861701699,6.8329,146.32,146.29,6.8338]
[1745861701898,1.9729,146.33,146.29,6.8338]
[1745861702598,6.833,146.32,146.29,6.8338]
[1745861702798,1.9729,146.33,146.29,6.8338]
[1745861703000,1.9729,146.33,146.28,6.8343]
[1745861703198,6.8334,146.31,146.26,42.12136795]
[1745861703601,6.8334,146.31,146.29,6.8337]
[1745861706000,6.8328,146.32,146.29,6.8337]
[1745861706697,6.8328,146.32,146.3,6.8334]
[1745861706896,1.9729,146.33,146.3,6.8334]
[1745861707500,16.50136795,146.35,146.28,16.50136795]
[1745861707801,6.832,146.34,146.28,16.50136795]
[1745861708699,6.8323,146.33,146.28,16.50136795]
[1745861709303,6.8323,146.33,146.3,6.8331]
[1745861709502,6.8323,146.33,146.3,32.4131]
[1745861710097,16.50136795,146.35,146.3,25.58]
[1745861710503,16.50136795,146.35,146.27,25.58]
[1745861711103,6.8337,146.3,146.28,6.8342]
[1745861711407,6.8332,146.31,146.28,6.8342]
[1745861711603,6.8332,146.31,146.29,6.834]
[1745861711803,16.50136795,146.35,146.27,25.58]
[1745861712102,6.8326,146.33,146.3,6.8333]
[1745861712304,27.7082,146.36,146.28,16.50136795]
[1745861712702,6.8319,146.34,146.32,6.8325]
[1745861713404,27.7082,146.36,146.28,16.50136795]
[1745861714914,6.8328,146.32,146.3,6.8333]
[1745861715706,6.8318,146.34,146.31,6.833]
[1745861715903,27.7082,146.36,146.31,6.833]
[1745861716104,6.8319,146.34,146.32,6.8326]
[1745861716304,2.0882,146.36,146.32,6.8326]
[1745861716602,6.8318,146.34,146.32,6.8326]
[1745861717104,6.8318,146.34,146.31,6.8328]
[1745861718334,6.8318,146.34,146.32,6.8326]
[1745861719608,65.40946609,146.43,146.32,16.50136795]
[1745861719609,42.08136795,146.41,146.32,16.50136795]
[1745861720006,6.83,146.38,146.35,6.8308]
[1745861720408,42.08136795,146.41,146.35,6.8308]
[1745861720608,42.08136795,146.41,146.34,6.8314]
[1745861721306,42.08136795,146.41,146.35,6.8312]
[1745861721508,42.08136795,146.41,146.32,16.50136795]
[1745861721808,6.83,146.38,146.36,6.8306]
[1745861722009,42.08136795,146.41,146.36,6.8306]
[1745861722311,6.8296,146.39,146.36,6.8306]
[1745861722510,42.08136795,146.41,146.36,6.8306]
[1745861723204,6.83,146.38,146.36,6.8306]
[1745861724511,6.83,146.38,146.35,6.8309]
[1745861725105,6.83,146.38,146.36,6.8307]
[1745861726110,6.8295,146.39,146.35,25.56]
[1745861726409,6.8295,146.39,146.36,6.8306]
[1745861727110,16.50136795,146.41,146.34,6.8314]
[1745861727308,16.50136795,146.41,146.32,42.06136795]
[1745861727709,16.50136795,146.41,146.35,6.8309]
[1745861728011,6.8306,146.37,146.35,6.8309]
[1745861728211,16.50136795,146.41,146.34,6.8314]
[1745861728515,6.8305,146.37,146.32,42.06136795]
[1745861728812,6.8305,146.37,146.34,6.8313]
[1745861729711,6.8308,146.36,146.33,6.8319]
[1745861730212,6.8304,146.37,146.34,6.8313]
[1745861730412,16.50136795,146.41,146.32,42.06136795]
[1745861730814,6.8309,146.36,146.33,6.8318]
[1745861731217,16.50136795,146.39,146.32,25.56]
[1745861731514,16.50136795,146.37,146.32,25.56]
[1745861731713,2.0792,146.36,146.32,25.56]
[1745861731913,6.8321,146.33,146.32,25.56]
[1745861732111,2.0792,146.36,146.32,25.56]
[1745861732515,6.8319,146.34,146.32,25.56]
[1745861733013,2.0792,146.36,146.32,25.56]
[1745861733211,25.56,146.4,146.34,16.50136795]
[1745861733410,4.0828,146.42,146.36,6.8305]
[1745861733617,6.8296,146.39,146.36,6.8305]
[1745861734519,6.8299,146.38,146.36,6.8305]
[1745861736418,6.8294,146.39,146.37,6.8302]
[1745861736715,4.0828,146.42,146.37,6.8302]
[1745861736911,4.0828,146.42,146.36,42.06136795]
[1745861737112,6.8291,146.4,146.36,42.06136795]
[1745861737313,4.0828,146.42,146.36,42.06136795]
[1745861737615,6.8295,146.39,146.37,6.83]
[1745861738121,6.8295,146.39,146.36,42.06136795]
[1745861738315,6.8295,146.39,146.36,48.89176795]
[1745861738517,6.8302,146.37,146.36,25.56]
[1745861739015,4.0828,146.42,146.36,25.56]
[1745861739717,6.8302,146.37,146.36,25.56]
[1745861743917,6.8308,146.36,146.34,6.8314]
[1745861744621,6.8305,146.37,146.34,6.8314]
[1745861744820,16.50136795,146.41,146.34,6.8314]
[1745861745018,16.50136795,146.39,146.33,25.54]
[1745861745321,6.8315,146.35,146.33,25.54]
[1745861745823,6.831,146.36,146.33,25.54]
[1745861746023,4.0828,146.42,146.34,16.50136795]
[1745861746328,4.0828,146.42,146.35,6.8309]
[1745861746622,6.8302,146.38,146.35,6.8309]
[1745861747024,6.8303,146.37,146.34,23.33286795]
[1745861747227,4.0828,146.42,146.34,23.33286795]
[1745861747925,6.8305,146.37,146.34,23.33286795]
[1745861748126,4.0828,146.42,146.34,16.50136795]
[1745861748825,4.0828,146.42,146.36,6.8305]
[1745861750825,6.8297,146.39,146.36,6.8305]
[1745861752427,6.8299,146.38,146.36,6.8305]
[1745861753831,6.8303,146.37,146.35,6.8309]
[1745861755025,16.50136795,146.41,146.33,25.54]
[1745861755230,16.50136795,146.39,146.33,25.54]
[1745861755432,1.9287,146.38,146.33,25.54]
[1745861755624,6.8316,146.34,146.33,25.54]
[1745861755829,1.9287,146.38,146.31,6.8328]
[1745861756032,1.9907,146.37,146.31,6.8328]
[1745861756325,1.9907,146.37,146.32,6.8325]
[1745861756533,18.49206795,146.37,146.3,25.52]
[1745861756928,6.8319,146.34,146.31,6.8327]
[1745861757435,6.8314,146.35,146.32,6.8325]
[1745861758333,6.8314,146.35,146.33,6.832]
[1745861759332,6.8317,146.34,146.32,6.8324]
[1745861760135,6.8317,146.34,146.31,6.8328]
[1745861760338,6.8323,146.33,146.31,6.8328]
[1745861760634,1.9907,146.37,146.31,6.8328]
[1745861761032,6.8319,146.34,146.32,6.8324]
[1745861761338,1.9907,146.37,146.3,42.02136795]
[1745861761539,1.9287,146.38,146.3,42.02136795]
[1745861762737,6.831,146.36,146.3,42.02136795]
[1745861763139,1.9287,146.38,146.3,42.02136795]
[1745861763541,1.9287,146.38,146.31,6.8328]
[1745861764042,6.8319,146.34,146.31,6.8328]
[1745861764741,6.8319,146.34,146.32,6.8326]
[1745861765034,1.9287,146.38,146.3,42.02136795]
[1745861765035,6.8322,146.33,146.3,42.02136795]
[1745861765342,16.50136795,146.37,146.3,48.85456795]
[1745861765642,6.8323,146.33,146.3,48.85456795]
[1745861765843,16.50136795,146.37,146.3,48.85456795]
[1745861766243,6.8324,146.33,146.31,6.833]
[1745861770646,1.9287,146.38,146.3,42.02136795]
[1745861770846,1.9287,146.38,146.32,16.50136795]
[1745861771145,6.8311,146.36,146.33,6.8317]
[1745861771645,1.9287,146.38,146.33,6.8317]
[1745861771847,6.8315,146.35,146.33,6.8317]
[1745861772044,1.9287,146.38,146.33,6.8317]
[1745861772747,6.8315,146.35,146.33,6.8317]
[1745861772948,6.8315,146.35,146.32,23.33366795]
[1745861773444,6.8315,146.35,146.33,6.832]
[1745861774549,6.8309,146.36,146.34,6.8316]
[1745861775251,6.8309,146.36,146.32,16.50136795]
[1745861775747,6.8314,146.35,146.32,16.50136795]
[1745861777245,6.8309,146.36,146.33,6.8319]
[1745861777854,6.8312,146.35,146.33,6.8319]
[1745861778453,6.8318,146.34,146.32,23.33366795]
[1745861778655,1.9287,146.38,146.32,23.33366795]
[1745861779251,6.8314,146.35,146.33,6.832]
[1745861779453,1.9287,146.38,146.33,6.832]
[1745861779655,6.8311,146.36,146.33,6.832]
[1745861781056,1.9287,146.38,146.33,6.832]
[1745861781658,6.8311,146.36,146.33,6.832]
[1745861782458,6.8312,146.35,146.33,6.832]
[1745861782649,6.8312,146.35,146.32,23.33366795]
[1745861782854,1.9287,146.38,146.3,42.02136795]
[1745861783052,6.8319,146.34,146.3,42.02136795]
[1745861783255,6.8319,146.34,146.31,6.8327]
[1745861783658,6.8319,146.34,146.3,42.02136795]
[1745861783859,6.8319,146.34,146.31,6.833]
[1745861784655,1.9287,146.38,146.3,42.02136795]
[1745861785460,6.8311,146.36,146.33,6.8318]
[1745861786661,6.8311,146.36,146.34,6.8316]
[1745861790564,6.8304,146.37,146.34,6.8316]
[1745861790761,1.9287,146.38,146.34,6.8316]
[1745861791059,6.8306,146.37,146.34,6.8316]
[1745861792862,8.7587,146.38,146.32,16.50136795]
[1745861793063,1.9875,146.41,146.34,16.50136795]
[1745861793264,2.0554,146.43,146.36,16.50136795]
[1745861793664,6.8287,146.41,146.38,6.8297]
[1745861793864,2.0554,146.43,146.36,16.50136795]
[1745861794664,2.0554,146.43,146.37,6.8298]
[1745861795063,18.55676795,146.43,146.34,42.02136795]
[1745861795665,6.8296,146.39,146.36,6.8305]
[1745861796165,18.55676795,146.43,146.36,6.8305]
[1745861797170,6.8295,146.39,146.37,6.8302]
[1745861797761,18.55676795,146.43,146.34,42.02136795]
[1745861798966,6.8292,146.4,146.37,6.83]
[1745861800271,6.8292,146.4,146.38,6.8298]
[1745861800566,2.0554,146.43,146.38,6.8298]
[1745861801067,6.8286,146.41,146.38,6.8298]
[1745861801667,6.8289,146.4,146.38,6.8298]
[1745861802268,6.8285,146.41,146.38,6.8298]
[1745861802469,2.0554,146.43,146.38,6.8298]
[1745861803470,6.8289,146.4,146.38,6.8298]
[1745861804067,18.55676795,146.43,146.34,42.02136795]
[1745861804467,16.50136795,146.41,146.34,42.02136795]
[1745861804869,16.50136795,146.41,146.34,25.52]
[1745861805067,6.8306,146.37,146.34,32.3514]
[1745861805262,16.50136795,146.39,146.34,25.52]
[1745861805869,6.831,146.36,146.34,25.52]
[1745861806069,16.50136795,146.39,146.34,25.52]
[1745861806272,42.00136795,146.41,146.34,25.52]
[1745861806570,6.8305,146.37,146.34,25.52]
[1745861807272,6.83,146.38,146.35,6.8311]
[1745861807672,42.00136795,146.41,146.35,6.8311]
[1745861809476,6.83,146.38,146.35,6.8311]
[1745861810475,6.8303,146.37,146.35,6.8311]
[1745861810680,6.8303,146.37,146.34,32.3514]
[1745861811073,25.5,146.41,146.34,25.52]
[1745861811273,25.5,146.41,146.34,42.02136795]
[1745861811774,6.8293,146.39,146.36,6.8305]
[1745861812276,6.8291,146.4,146.34,42.02136795]
[1745861812575,16.50136795,146.42,146.37,6.8301]
[1745861812777,6.8294,146.39,146.34,42.02136795]
[1745861813178,6.8294,146.39,146.36,6.8305]
[1745861814679,6.829,146.4,146.37,6.8302]
[1745861816274,6.8285,146.41,146.38,6.8297]
[1745861817783,6.8289,146.4,146.38,6.8297]
[1745861818584,6.8289,146.4,146.37,6.83]
[1745861818777,6.8289,146.4,146.34,42.02136795]
[1745861819183,6.8286,146.41,146.38,6.8297]
[1745861819481,2.0554,146.43,146.38,6.8297]
[1745861820186,6.8288,146.41,146.38,6.8297]
[1745861820384,2.0554,146.43,146.38,6.8297]
[1745861821487,2.0554,146.43,146.39,6.829]
[1745861821888,6.8282,146.42,146.39,6.829]
[1745861822186,2.0554,146.43,146.38,25.48]
[1745861822389,6.8275,146.42,146.38,25.48]
[1745861822789,6.8275,146.42,146.38,32.3087]
[1745861822990,6.8277,146.41,146.38,32.3087]
[1745861824490,6.8275,146.42,146.39,6.8286]
[1745861824993,41.98136795,146.45,146.38,25.48]
[1745861825181,6.828,146.41,146.38,32.3089]
[1745861825584,6.827,146.43,146.39,6.8284]
[1745861825893,3.9344,146.46,146.39,6.8284]
[1745861826088,3.9344,146.46,146.38,48.81026795]
[1745861826693,16.50136795,146.45,146.38,41.98136795]
[1745861827595,16.50136795,146.45,146.38,25.48]
[1745861827791,16.50136795,146.41,146.32,20.63326795]
[1745861827994,16.50136795,146.41,146.33,25.48]
[1745861828295,6.8298,146.37,146.34,6.8309]
[1745861828893,6.8293,146.38,146.35,6.8304]
[1745861829094,16.50136795,146.43,146.34,16.50136795]
[1745861829495,16.50136795,146.43,146.34,23.33196795]
[1745861829992,6.8295,146.38,146.34,23.33196795]
[1745861830400,16.50136795,146.43,146.34,16.50136795]
[1745861830596,16.50136795,146.39,146.31,1.9454]
[1745861830791,16.50136795,146.37,146.3,32.3125]
[1745861830996,6.8317,146.33,146.3,32.3125]
[1745861831196,16.50136795,146.37,146.3,25.48]
[1745861831395,16.50136795,146.37,146.3,32.3126]
[1745861832096,16.50136795,146.37,146.3,25.48]
[1745861832300,6.8317,146.33,146.3,25.48]
[1745861832699,6.8317,146.33,146.3,32.3126]
[1745861832899,6.832,146.32,146.3,25.48]
[1745861833601,6.8316,146.33,146.3,25.48]
[1745861834304,6.8316,146.33,146.3,32.3126]
[1745861834799,16.50136795,146.37,146.3,25.48]
[1745861836000,6.8322,146.32,146.3,25.48]
[1745861836299,6.0358,146.38,146.3,41.98136795]
[1745861836596,6.8306,146.35,146.32,6.8317]
[1745861838098,6.831,146.34,146.32,6.8317]
[1745861838400,6.831,146.34,146.3,41.98136795]
[1745861839002,6.831,146.34,146.32,6.8318]
[1745861839302,6.8307,146.35,146.32,6.8318]
[1745861840805,6.831,146.34,146.32,6.8318]
[1745861841000,6.0358,146.38,146.32,6.8318]
[1745861841305,6.8307,146.35,146.32,6.8318]
[1745861844205,6.8307,146.35,146.33,6.8313]
[1745861844508,6.8303,146.36,146.3,41.98136795]
[1745861844804,6.8303,146.36,146.33,6.8312]
[1745861845406,6.8298,146.37,146.34,6.8307]
[1745861849709,6.83,146.36,146.34,6.8307]
[1745861849910,2.0262,146.38,146.34,6.8307]
[1745861850112,29.3715,146.42,146.34,41.98136795]
[1745861850311,6.8284,146.4,146.34,41.98136795]
[1745861850511,6.8284,146.4,146.37,6.8293]
[1745861850807,1.9883,146.44,146.36,16.50136795]
[1745861851011,1.9883,146.44,146.38,6.8288]
[1745861851715,6.828,146.41,146.38,6.8288]
[1745861852213,6.8282,146.4,146.38,6.8288]
[1745861852409,1.9883,146.44,146.38,6.8288]
[1745861853409,6.8279,146.41,146.38,6.8288]
[1745861855118,6.8284,146.4,146.37,6.8295]
[1745861855316,1.9883,146.44,146.36,16.50136795]
[1745861855717,6.8279,146.41,146.38,6.8289]
[1745861856815,2.0701,146.47,146.4,16.50136795]
[1745861857021,2.0701,146.47,146.4,41.98136795]
[1745861857215,6.8257,146.46,146.42,6.8269]
[1745861857521,18.57146795,146.47,146.4,25.48]
[1745861857911,2.0701,146.47,146.4,25.48]
[1745861858111,2.0701,146.47,146.4,41.98136795]
[1745861858317,6.8261,146.45,146.42,6.827]
[1745861858815,2.0701,146.47,146.4,41.98136795]
[1745861859221,6.8255,146.46,146.43,6.8264]
[1745861860024,45.89116795,146.49,146.4,41.98136795]
[1745861860220,29.3898,146.49,146.42,16.50136795]
[1745861860723,6.8251,146.47,146.44,6.8261]
[1745861862124,45.89116795,146.49,146.4,41.98136795]
[1745861862324,16.50136795,146.47,146.4,25.48]
[1745861862625,6.8259,146.45,146.41,6.8273]
[1745861862921,6.8259,146.45,146.4,25.48]
[1745861862922,16.50136795,146.47,146.4,25.48]
[1745861863321,6.8264,146.44,146.41,6.8275]
[1745861863822,6.8261,146.45,146.42,6.8272]
[1745861864018,16.50136795,146.47,146.4,25.48]
[1745861864322,6.8259,146.45,146.42,6.8272]
[1745861864519,45.89116795,146.49,146.4,41.98136795]
[1745861865021,45.89116795,146.49,146.43,6.8266]
[1745861865420,6.8259,146.45,146.42,6.827]
[1745861866324,6.8256,146.46,146.4,41.98136795]
[1745861866526,6.8256,146.46,146.42,16.50136795]
[1745861866725,6.8256,146.46,146.43,6.8264]
[1745861867427,6.8259,146.45,146.43,6.8264]
[1745861868125,6.8259,146.45,146.42,23.32836795]
[1745861869928,6.8256,146.46,146.43,6.8267]
[1745861871528,29.3898,146.49,146.43,6.8267]
[1745861871929,6.8256,146.46,146.43,6.8267]
[1745861873526,6.8256,146.46,146.42,16.50136795]
[1745861873527,6.8256,146.46,146.44,6.8263]
[1745861873825,6.8256,146.46,146.42,16.50136795]
[1745861874331,6.8259,146.45,146.43,6.8265]
[1745861875230,6.8256,146.46,146.43,6.8265]
[1745861875735,16.50136795,146.48,146.43,6.8265]
[1745861875933,6.826,146.45,146.42,6.827]
[1745861876835,6.826,146.45,146.43,6.8268]
[1745861877535,6.8255,146.46,146.44,6.8261]
[1745861877735,6.8255,146.46,146.42,16.50136795]
[1745861878635,6.8255,146.46,146.43,6.8265]
[1745861878936,6.8259,146.45,146.43,6.8265]
[1745861879140,1.9907,146.49,146.38,3.9669]
[1745861879333,6.8238,146.5,146.46,16.50136795]
[1745861879933,6.8233,146.51,146.46,16.50136795]
[1745861880131,6.8233,146.51,146.48,6.8242]
[1745861880532,6.8233,146.51,146.46,16.50136795]
[1745861881032,6.8228,146.52,146.48,16.50136795]
[1745861881234,2.1032,146.53,146.48,16.50136795]
[1745861881435,2.1032,146.53,146.46,16.50136795]
[1745861882235,6.8231,146.51,146.46,16.50136795]
[1745861883039,6.8236,146.5,146.46,16.50136795]
[1745861883740,6.8233,146.51,146.48,6.8242]
[1745861884137,6.8233,146.51,146.46,16.50136795]
[1745861884737,6.8233,146.51,146.48,6.8241]
[1745861885239,6.8228,146.52,146.49,6.8237]
[1745861885437,2.1032,146.53,146.49,6.8237]
[1745861885637,2.1032,146.53,146.46,16.50136795]
[1745861885839,6.8233,146.51,146.48,6.824]
[1745861886139,6.8233,146.51,146.46,16.50136795]
[1745861886639,6.8233,146.51,146.45,25.44]
[1745861886640,2.0566,146.54,146.5,16.50136795]
[1745861886841,2.0566,146.54,146.5,23.32466795]
[1745861887041,6.8224,146.53,146.5,23.32466795]
[1745861887341,6.8224,146.53,146.5,16.50136795]
[1745861888739,8.8784,146.54,146.5,16.50136795]
[1745861888941,2.0566,146.54,146.5,16.50136795]
[1745861889241,2.0566,146.54,146.51,6.8228]
[1745861889541,6.8223,146.53,146.51,6.8228]
[1745861889738,46.11126795,146.58,146.52,6.8226]
[1745861890138,6.8215,146.55,146.52,6.8226]
[1745861890338,46.11126795,146.58,146.52,6.8226]
[1745861890636,6.8217,146.54,146.51,6.8228]
[1745861891044,6.8209,146.56,146.52,16.50136795]
[1745861891239,4.1699,146.58,146.53,25.44]
[1745861891641,6.8205,146.57,146.53,32.2617]
[1745861892341,6.8208,146.56,146.53,32.2617]
[1745861893446,4.1699,146.58,146.53,25.44]
[1745861893940,6.8216,146.54,146.53,25.44]
[1745861894346,4.1699,146.58,146.53,25.44]
[1745861894546,6.8213,146.55,146.53,25.44]
[1745861895746,6.8213,146.55,146.53,32.262]
[1745861896047,4.1699,146.58,146.53,25.44]
[1745861896349,6.8218,146.56,146.53,32.2626]
[1745861896649,4.1699,146.58,146.53,25.44]
[1745861896948,6.8216,146.56,146.53,32.2628]
[1745861897651,6.8216,146.56,146.54,16.50136795]
[1745861897952,6.8219,146.55,146.54,16.50136795]
[1745861898549,6.8216,146.56,146.54,16.50136795]
[1745861899150,6.8219,146.55,146.53,32.2628]
[1745861899351,6.8219,146.55,146.53,41.94136795]
[1745861899949,6.8216,146.56,146.53,48.76416795]
[1745861901450,6.8216,146.56,146.55,16.50136795]
[1745861903652,6.8212,146.57,146.55,16.50136795]
[1745861904354,6.8214,146.56,146.55,16.50136795]
[1745861905155,6.8211,146.57,146.55,16.50136795]
[1745861905551,6.8211,146.57,146.55,23.32316795]
[1745861906653,6.8211,146.57,146.55,6.8218]
[1745861906849,6.8207,146.58,146.55,6.8218]
[1745861907351,6.8207,146.58,146.56,6.8213]
[1745861907949,6.8207,146.58,146.55,6.8216]
[1745861908849,3.9457,146.61,146.55,6.8216]
[1745861909053,6.8211,146.57,146.55,6.8216]
[1745861909952,6.8211,146.57,146.54,6.8221]
[1745861911354,6.8211,146.57,146.55,6.8218]
[1745861911758,6.8211,146.57,146.53,41.94136795]
[1745861911949,6.8211,146.57,146.54,6.8219]
[1745861912254,6.8211,146.57,146.53,41.94136795]
[1745861912554,6.8211,146.57,146.54,6.8221]
[1745861913254,6.8211,146.57,146.55,6.8218]
[1745861914148,6.8214,146.56,146.54,6.8221]
[1745861914345,16.50136795,146.6,146.53,25.44]
[1745861914648,16.50136795,146.6,146.54,6.8221]
[1745861914851,3.9457,146.61,146.53,25.44]
[1745861915254,3.9457,146.61,146.55,6.8215]
[1745861915856,6.8207,146.58,146.55,6.8215]
[1745861916054,6.8207,146.58,146.56,6.8214]
[1745861916356,6.8207,146.58,146.53,25.44]
[1745861916655,6.8207,146.58,146.55,6.8216]
[1745861917457,6.8207,146.58,146.56,6.8214]
[1745861917657,6.8202,146.59,146.56,6.8214]
[1745861917853,2.0655,146.62,146.58,6.8202]
[1745861918048,2.0655,146.62,146.57,25.4]
[1745861918448,2.0655,146.62,146.57,32.2206]
[1745861918647,6.8205,146.58,146.57,25.4]
[1745861919055,64.22004781,146.7,146.57,401.90136795]
[1745861919358,64.22004781,146.7,146.62,16.50136795]
[1745861919559,64.22004781,146.7,146.63,25.4]
[1745861919758,64.22004781,146.7,146.64,16.50136795]
[1745861919958,64.22004781,146.7,146.63,25.4]
[1745861919959,80.72141576,146.72,146.63,25.4]
[1745861920155,6.8151,146.7,146.63,25.4]
[1745861920553,6.8151,146.7,146.66,6.8165]
[1745861921259,16.50136795,146.7,146.65,6.8171]
[1745861922654,6.8157,146.69,146.65,6.8171]
[1745861922856,16.50136795,146.7,146.65,6.8171]
[1745861923259,16.50136795,146.7,146.64,6.8175]
[1745861924260,16.50136795,146.68,146.63,25.4]
[1745861924657,3.8837,146.73,146.66,16.50136795]
[1745861924858,3.8837,146.73,146.67,25.4]
[1745861925058,6.814,146.72,146.67,25.4]
[1745861925259,3.8837,146.73,146.68,16.50136795]
[1745861925759,8.7463,146.73,146.68,16.50136795]
[1745861926262,1.9325,146.73,146.68,16.50136795]
[1745861926464,6.8132,146.74,146.68,16.50136795]
[1745861926651,6.8132,146.74,146.7,6.8146]
[1745861926959,41.90136795,146.76,146.7,6.8146]
[1745861927559,41.90136795,146.76,146.68,16.50136795]
[1745861928261,6.8139,146.73,146.69,6.8152]
[1745861928458,6.8139,146.73,146.68,16.50136795]
[1745861928965,6.8139,146.73,146.69,6.815]
[1745861930562,6.814,146.72,146.69,6.815]
[1745861931163,25.4,146.76,146.7,16.50136795]
[1745861931362,4.1514,146.77,146.7,16.50136795]
[1745861931565,4.1514,146.77,146.71,25.4]
[1745861931760,10.9632,146.77,146.71,25.4]
[1745861932465,10.9632,146.77,146.73,6.813]
[1745861933361,10.9632,146.77,146.74,6.813]
[1745861933961,10.9632,146.77,146.73,6.8133]
[1745861934865,6.8121,146.76,146.73,6.8133]
[1745861936666,10.9632,146.77,146.74,6.813]
[1745861936865,20.65276795,146.77,146.61,13.638]
[1745861937165,6.8156,146.69,146.62,41.88136795]
[1745861937368,6.8156,146.69,146.63,25.38]
[1745861937568,41.88136795,146.72,146.64,16.50136795]
[1745861937767,6.8147,146.71,146.64,16.50136795]
[1745861937968,25.38,146.75,146.68,16.50136795]
[1745861938170,25.38,146.75,146.68,23.31716795]
[1745861938771,6.8133,146.74,146.7,16.50136795]
[1745861938960,4.1514,146.77,146.7,16.50136795]
[1745861939967,16.50136795,146.74,146.65,8.7892]
[1745861940164,16.50136795,146.74,146.66,25.36]
[1745861940474,41.86136795,146.74,146.66,25.36]
[1745861941274,6.8157,146.69,146.66,32.1767]
[1745861941473,25.36,146.74,146.67,16.50136795]
[1745861941878,6.8146,146.71,146.67,23.31736795]
[1745861942171,25.36,146.74,146.67,16.50136795]
[1745861942375,16.50136795,146.76,146.67,16.50136795]
[1745861942570,16.50136795,146.74,146.67,16.50136795]
[1745861942971,6.8154,146.69,146.67,16.50136795]
[1745861943172,16.50136795,146.74,146.66,25.36]
[1745861943470,16.50136795,146.74,146.67,16.50136795]
[1745861943669,16.50136795,146.76,146.67,16.50136795]
[1745861944870,6.8137,146.73,146.67,16.50136795]
[1745861945474,6.8137,146.73,146.7,6.8148]
[1745861945772,6.8132,146.74,146.71,6.8141]
[1745861945973,4.1514,146.77,146.7,25.36]
[1745861946167,2.0965,146.77,146.71,16.50136795]
[1745861946366,2.0965,146.77,146.73,6.8134]
[1745861946565,6.8119,146.77,146.73,16.50136795]
[1745861946774,96.33007171,146.89,146.75,16.50136795]
[1745861946775,1.9331,146.85,146.75,16.50136795]
[1745861947074,6.8093,146.82,146.8,16.50136795]
[1745861947272,1.9331,146.85,146.8,16.50136795]
[1745861947472,1.9331,146.85,146.8,23.31136795]
[1745861947676,6.8088,146.83,146.8,23.31136795]
[1745861947975,1.9331,146.85,146.8,16.50136795]
[1745861948275,6.8101,146.81,146.78,16.50136795]
[1745861948481,1.9331,146.85,146.79,6.8106]
[1745861948778,6.8093,146.83,146.79,6.8106]